bitfinex-derivatives/quotes_BTCF0:USTF0_20260127
["timestamp","ask_amount","ask_price","bid_price","bid_amount"]
[1769526794980,0.13055033,87985.0,87960.0,0.11587691]
[1769526795182,0.24736148,87985.0,87960.0,0.11587691]
[1769526795384,0.011382,87976.0,87960.0,0.11587691]
[1769526795576,0.13055033,87975.0,87960.0,0.11587691]
[1769526795981,0.13055033,87974.0,87960.0,0.11587691]
[1769526796178,0.011382,87971.0,87959.0,0.10244]
[1769526796377,0.13055033,87970.0,87959.0,0.10244]
[1769526796589,0.13055033,87970.0,87954.0,0.2998]
[1769526796590,0.13055033,87969.0,87952.0,0.11587691]
[1769526796794,0.13055033,87968.0,87953.0,0.40224]
[1769526796976,0.13055033,87967.0,87953.0,0.52950091]
[1769526797177,0.13055033,87966.0,87957.0,0.011384]
[1769526797382,0.10244,87980.0,87961.0,0.011383]
[1769526797581,0.10244,87980.0,87960.0,0.011384]
[1769526797781,0.10244,87980.0,87962.0,0.011383]
[1769526797986,0.10244,87980.0,87960.0,0.11587691]
[1769526798483,0.011382,87976.0,87954.0,0.011384]
[1769526799088,0.011382,87976.0,87955.0,0.4022]
[1769526799279,0.11681115,87979.0,87955.0,0.51807691]
[1769526799484,0.12819315,87971.0,87956.0,0.10244]
[1769526799684,0.011382,87974.0,87956.0,0.10244]
[1769526799884,0.011382,87977.0,87955.0,0.11587691]
[1769526800085,0.011382,87977.0,87955.0,0.21831691]
[1769526800286,0.10244,87980.0,87956.0,0.11587691]
[1769526800493,0.011382,87976.0,87959.0,0.11587691]
[1769526800996,0.12781115,87987.0,87959.0,0.11587691]
[1769526800997,0.10244,87981.0,87959.0,0.11587691]
[1769526801195,0.011381,87979.0,87959.0,0.11587691]
[1769526801797,0.10244,87981.0,87959.0,0.11587691]
[1769526801985,0.11681115,87978.0,87955.0,0.10244]
[1769526802194,0.011382,87976.0,87959.0,0.11041808]
[1769526802494,0.011382,87976.0,87955.0,0.10244]
[1769526802894,0.11128819,87976.0,87942.0,0.24030408]
[1769526803093,0.11128819,87976.0,87944.0,0.011386]
[1769526803283,0.11128819,87976.0,87943.0,0.4022]
[1769526803284,0.011382,87975.0,87951.0,0.011385]
[1769526803489,0.011382,87975.0,87952.0,0.11041808]
[1769526803694,0.011382,87971.0,87952.0,0.11041808]
[1769526803994,0.12267119,87969.0,87943.0,0.51261808]
[1769526804294,0.011383,87967.0,87943.0,0.51261808]
[1769526804590,0.11321267,87962.0,87943.0,0.10244]
[1769526805295,0.12459567,87962.0,87943.0,0.10244]
[1769526805496,0.10244,87967.0,87944.0,0.11400396]
[1769526806194,0.011383,87964.0,87944.0,0.11400396]
[1769526806496,0.11321267,87964.0,87943.0,0.10244]
[1769526806887,0.011383,87962.0,87943.0,0.10244]
[1769526807083,0.011384,87958.0,87943.0,0.10244]
[1769526807688,0.011384,87958.0,87935.0,0.11400396]
[1769526807890,0.011384,87958.0,87938.0,0.29976]
[1769526808204,0.011384,87961.0,87938.0,0.29976]
[1769526808497,0.011384,87961.0,87939.0,0.11400396]
[1769526808693,0.011384,87961.0,87939.0,0.21644396]
[1769526809400,0.011384,87961.0,87938.0,0.2998]
[1769526809401,0.12845305,87960.0,87940.0,0.11400396]
[1769526809590,0.12845305,87959.0,87942.0,0.11400396]
[1769526809794,0.12845305,87958.0,87940.0,0.113826]
[1769526809990,0.12845305,87957.0,87941.0,0.11400396]
[1769526810201,0.12845305,87956.0,87941.0,0.11400396]
[1769526810394,0.12845305,87955.0,87944.0,0.011386]
[1769526810591,0.00845305,87954.0,87941.0,0.11400396]
[1769526810794,0.10244,87963.0,87941.0,0.11400396]
[1769526811485,0.11321267,87958.0,87917.0,0.06775152]
[1769526811685,0.11321267,87953.0,87927.0,0.06775152]
[1769526811895,0.011385,87951.0,87927.0,0.06775152]
[1769526812094,0.11321267,87953.0,87915.0,0.011389]
[1769526812095,0.11321267,87948.0,87917.0,0.011389]
[1769526812292,0.011387,87937.0,87915.0,0.06775152]
[1769526812484,0.10244,87952.0,87918.0,0.2998]
[1769526812485,0.11321267,87946.0,87918.0,0.2998]
[1769526812688,0.11321267,87941.0,87920.0,0.011389]
[1769526812893,0.11371389,87951.0,87926.0,0.06775152]
[1769526813089,0.10244,87952.0,87926.0,0.06775152]
[1769526813394,0.011384,87956.0,87931.0,0.06775152]
[1769526813703,0.10244,87958.0,87943.0,0.011386]
[1769526813887,0.10244,87968.0,87948.0,0.011385]
[1769526814087,0.011383,87968.0,87947.0,0.06827835]
[1769526814691,0.10244,87970.0,87947.0,0.06827835]
[1769526815091,0.11321267,87986.0,87956.0,0.06827835]
[1769526815291,0.11321267,87986.0,87960.0,0.06827835]
[1769526815498,0.11321267,87996.0,87968.0,0.06540726]
[1769526815692,0.11321267,87996.0,87969.0,0.10244]
[1769526815693,0.011379,87995.0,87969.0,0.10244]
[1769526816086,0.01138,87989.0,87962.0,0.011383]
[1769526816303,0.011381,87983.0,87963.0,0.10244]
[1769526816485,0.11321267,87989.0,87963.0,0.10244]
[1769526816486,0.11321267,87989.0,87964.0,0.06540726]
[1769526816691,0.01138,87989.0,87964.0,0.06540726]
[1769526817185,0.011379,87993.0,87964.0,0.06540726]
[1769526817394,0.01138,87992.0,87964.0,0.07679026]
[1769526817592,0.01138,87990.0,87964.0,0.06540726]
[1769526818195,0.10244,87999.0,87964.0,0.06540726]
[1769526818196,0.011381,87984.0,87964.0,0.06540726]
[1769526818487,0.01138,87991.0,87964.0,0.07679026]
[1769526818692,0.12504507,87995.0,87971.0,0.05926493]
[1769526818992,0.011379,87995.0,87971.0,0.05926493]
[1769526819799,0.11321267,87998.0,87971.0,0.05926493]
[1769526820498,0.11321267,87998.0,87979.0,0.011381]
[1769526820798,0.10244,87997.0,87975.0,0.05250083]
[1769526821301,0.10244,87997.0,87975.0,0.06388283]
[1769526821504,0.10244,87997.0,87975.0,0.05250083]
[1769526822491,0.11891151,87996.0,87975.0,0.05250083]
[1769526822704,0.11891151,87995.0,87975.0,0.05250083]
[1769526823004,0.11891151,87994.0,87975.0,0.05250083]
[1769526823298,0.06667029,87993.0,87983.0,0.011381]
[1769526823503,0.10244,88014.0,87991.0,0.01138]
[1769526823689,0.011377,88012.0,87990.0,0.10244]
[1769526823888,0.22243865,88014.0,87990.0,0.10244]
[1769526824700,0.13099865,88007.0,87990.0,0.10244]
[1769526825301,0.011,88007.0,87990.0,0.10244]
[1769526825606,0.011,88007.0,87991.0,0.01138]
[1769526825998,0.011,88007.0,87990.0,0.10244]
[1769526830206,0.011,88007.0,87994.0,0.011379]
[1769526830410,0.11992215,88033.0,88005.0,0.00023354]
[1769526830713,0.1024,88038.0,88009.0,0.00023354]
[1769526830911,0.1024,88038.0,88010.0,0.00023354]
[1769526831204,0.1024,88038.0,88009.0,0.011377]
[1769526831205,0.11992215,88022.0,88011.0,0.1024]
[1769526831405,0.011375,88026.0,88012.0,0.1024]
[1769526831602,0.13057122,88027.0,88012.0,0.1024]
[1769526832205,0.011376,88022.0,87998.0,0.00128633]
[1769526832411,0.11957122,88024.0,87999.0,0.40212]
[1769526832600,0.11957122,88024.0,87993.0,0.00227292]
[1769526832601,0.11957122,88019.0,87993.0,0.00227292]
[1769526832801,0.1024,88024.0,87994.0,0.1024]
[1769526832802,0.11957122,88016.0,87994.0,0.1024]
[1769526833000,0.13094722,88016.0,87994.0,0.1024]
[1769526833606,0.13094722,88016.0,87993.0,0.00227292]
[1769526833607,0.11957122,88016.0,87993.0,0.00227292]
[1769526833907,0.1024,88024.0,87993.0,0.00227292]
[1769526833908,0.11907536,88002.0,87993.0,1e-08]
[1769526834114,0.11907536,88002.0,87981.0,0.1024]
[1769526834614,0.011379,88000.0,87981.0,0.1024]
[1769526834917,0.01138,87991.0,87970.0,0.1024]
[1769526835117,0.011379,87994.0,87971.0,0.1024]
[1769526835811,0.11907536,87995.0,87972.0,0.011382]
[1769526836014,0.1024,87996.0,87973.0,0.00396049]
[1769526836219,0.11867983,88003.0,87979.0,0.00396049]
[1769526836220,0.011378,88002.0,87979.0,0.00396049]
[1769526836423,0.1024,88006.0,87984.0,0.00396049]
[1769526836605,0.1024,88005.0,87984.0,0.00396049]
[1769526836797,0.1024,88005.0,87985.0,0.00396049]
[1769526837004,0.011377,88010.0,87985.0,0.01534049]
[1769526837308,0.11867983,88012.0,87985.0,0.01534049]
[1769526837309,0.011377,88008.0,87985.0,0.01534049]
[1769526837511,0.011378,88006.0,87985.0,0.00396049]
[1769526837814,0.011377,88009.0,87987.0,0.00622204]
[1769526838009,0.011377,88009.0,87986.0,0.01138]
[1769526838010,0.1024,88012.0,87992.0,0.01760104]
[1769526839111,0.1024,88012.0,87992.0,0.00622204]
[1769526839508,0.1024,88012.0,87997.0,0.011379]
[1769526839811,0.1024,88012.0,87986.0,0.01138]
[1769526839812,0.1024,88022.0,88001.0,0.00485006]
[1769526840117,0.1024,88022.0,88003.0,0.00485006]
[1769526840312,0.1024,88022.0,88005.0,0.00485006]
[1769526840614,0.1024,88022.0,87998.0,0.1024]
[1769526840615,0.113776,88022.0,87999.0,0.011379]
[1769526840817,0.113776,88022.0,87978.0,0.011381]
[1769526840818,0.011379,88000.0,87978.0,0.011381]
[1769526841009,0.11838331,88006.0,87978.0,0.00485006]
[1769526841211,0.011378,88003.0,87979.0,0.40208]
[1769526841507,0.11838331,88006.0,87979.0,0.40694835]
[1769526841812,0.11837721,87996.0,87963.0,0.00486835]
[1769526842120,0.011379,87994.0,87972.0,0.011382]
[1769526842415,0.1024,88000.0,87969.0,0.00486835]
[1769526842416,0.011379,87997.0,87969.0,0.00486835]
[1769526842622,0.011379,87994.0,87975.0,0.00486835]
[1769526842830,0.011379,87994.0,87976.0,0.1024]
[1769526843015,0.011379,87997.0,87976.0,0.113782]
[1769526843212,0.011379,87997.0,87977.0,0.00486835]
[1769526843414,0.011379,87995.0,87977.0,0.00486835]
[1769526843719,0.011379,87998.0,87977.0,0.00486835]
[1769526843926,0.12,88012.0,87976.0,0.1024]
[1769526844225,0.11651761,88011.0,87983.0,0.011381]
[1769526844524,0.011376,88016.0,87996.0,0.011379]
[1769526844821,0.011376,88016.0,87997.0,0.1024]
[1769526845317,0.011376,88016.0,87997.0,0.113779]
[1769526845522,0.011376,88017.0,87997.0,0.1024]
[1769526846020,0.1024,88019.0,87997.0,0.1024]
[1769526846820,0.011377,88015.0,87997.0,0.1024]
[1769526847113,0.12,88018.0,87997.0,0.1024]
[1769526847319,0.011375,88029.0,87997.0,0.1024]
[1769526847320,0.011376,88016.0,87997.0,0.1024]
[1769526848022,0.1024,88023.0,87997.0,0.1024]
[1769526848225,0.011377,88014.0,87997.0,0.1024]
[1769526848415,0.011377,88014.0,87998.0,0.1024]
[1769526848416,0.011377,88009.0,87998.0,0.1024]
[1769526848617,0.011377,88009.0,87999.0,0.1024]
[1769526848821,0.14723421,88030.0,87999.0,0.1024]
[1769526848822,0.011,88067.0,88040.0,0.05617199]
[1769526849013,0.11250562,88065.0,88040.0,0.05617199]
[1769526849210,0.11250562,88065.0,88034.0,0.1024]
[1769526849211,0.1097763,88059.0,88034.0,0.1024]
[1769526849722,0.1211473,88058.0,88034.0,0.1024]
[1769526849926,0.1097763,88058.0,88034.0,0.1024]
[1769526850519,0.1097763,88048.0,88026.0,0.1024]
[1769526851225,0.1097763,88048.0,88027.0,0.011375]
[1769526851423,0.1097763,88048.0,88026.0,0.1024]
[1769526852124,0.1024,88050.0,88030.0,0.08218939]
[1769526852425,0.10236,88050.0,88030.0,0.07081439]
[1769526852623,0.10236,88050.0,88031.0,0.011374]
[1769526852818,0.10236,88050.0,88030.0,0.08218939]
[1769526853021,0.1097763,88058.0,88030.0,0.08218939]
[1769526853238,0.10236,88053.0,88033.0,0.011374]
[1769526854717,0.10236,88053.0,88036.0,0.07096429]
[1769526854912,0.10236,88053.0,88041.0,0.011373]
[1769526855828,0.10236,88053.0,88037.0,0.10236]
[1769526856122,0.10236,88053.0,88037.0,0.113734]
[1769526857017,0.10236,88053.0,88037.0,0.11146211]
[1769526859332,0.10236,88053.0,88039.0,0.011373]
[1769526859513,0.10236,88053.0,88038.0,0.06625795]
[1769526859717,0.10236,88053.0,88043.0,0.011373]
[1769526859930,0.10236,88053.0,88038.0,0.07763195]
[1769526860118,0.10236,88053.0,88040.0,0.011373]
[1769526860526,0.10236,88053.0,88038.0,0.06625795]
[1769526861029,0.10236,88053.0,88041.0,0.011373]
[1769526861329,0.1097763,88064.0,88037.0,0.10008811]
[1769526861525,0.011371,88057.0,88037.0,0.11146211]
[1769526861829,0.1097763,88059.0,88037.0,0.11146211]
[1769526861830,0.011371,88058.0,88039.0,0.011373]
[1769526862330,0.1097763,88059.0,88041.0,0.011373]
[1769526862523,0.12403755,88067.0,88047.0,0.011372]
[1769526862829,0.011,88067.0,88046.0,0.06662556]
[1769526863026,0.011,88067.0,88047.0,0.011372]
[1769526863228,0.011,88067.0,88048.0,0.10236]
[1769526863526,0.011,88067.0,88049.0,0.0614873]
[1769526863925,0.011,88067.0,88040.0,0.0614873]
[1769526863926,0.011371,88061.0,88040.0,0.0614873]
[1769526864123,0.011,88067.0,88041.0,0.10236]
[1769526864124,0.11303755,88057.0,88041.0,0.10236]
[1769526864319,0.011371,88055.0,88036.0,0.10236]
[1769526864519,0.11303755,88057.0,88036.0,0.10236]
[1769526864716,0.011372,88052.0,88036.0,0.10236]
[1769526864922,0.011372,88052.0,88028.0,0.29956]
[1769526864923,0.011373,88043.0,88024.0,0.0614873]
[1769526865218,0.011371,88056.0,88010.0,0.26573421]
[1769526865219,0.11211315,88045.0,88026.0,0.011375]
[1769526865422,0.11211315,88045.0,88025.0,0.10236]
[1769526868325,0.011373,88044.0,88025.0,0.10236]
[1769526869328,0.011372,88053.0,88033.0,0.011374]
[1769526869519,0.011372,88051.0,88031.0,0.06262952]
[1769526869720,0.011372,88049.0,88031.0,0.06262952]
[1769526869928,0.11211315,88057.0,88031.0,0.06262952]
[1769526870226,0.10605684,88056.0,88031.0,0.06262952]
[1769526870421,0.21816999,88055.0,88031.0,0.06262952]
[1769526870616,0.21816999,88055.0,88025.0,0.10236]
[1769526870617,0.10605684,88054.0,88023.0,0.06262952]
[1769526870823,0.11211315,88042.0,88023.0,0.10236]
[1769526871031,0.011372,88047.0,88027.0,0.011375]
[1769526871215,0.12348515,88047.0,88024.0,0.07400452]
[1769526871524,0.011373,88044.0,88024.0,0.07400452]
[1769526871721,0.113731,88058.0,88030.0,0.011374]
[1769526871722,0.011372,88050.0,88030.0,0.011374]
[1769526871928,0.011372,88050.0,88024.0,0.06262952]
[1769526871929,0.10236,88047.0,88025.0,0.011375]
[1769526872128,0.10236,88048.0,88024.0,0.06262952]
[1769526872326,0.10603921,88047.0,88030.0,0.07862663]
[1769526872627,0.10236,88048.0,88032.0,0.07862663]
[1769526872825,0.011372,88047.0,88032.0,0.07862663]
[1769526873020,0.011372,88047.0,88027.0,0.09000163]
[1769526873626,0.011372,88047.0,88029.0,0.011375]
[1769526873829,0.011373,88046.0,88027.0,0.07862663]
[1769526874134,0.10236,88053.0,88027.0,0.07862663]
[1769526874430,0.11211315,88051.0,88027.0,0.07862663]
[1769526874625,0.10604027,88050.0,88027.0,0.07862663]
[1769526874831,0.011373,88043.0,88027.0,0.07862663]
[1769526875031,0.11211315,88051.0,88027.0,0.07862663]
[1769526875233,0.011374,88037.0,88028.0,0.10236]
[1769526875530,0.11211315,88044.0,88028.0,0.10236]
[1769526875531,0.011373,88041.0,88028.0,0.10236]
[1769526875833,0.11211315,88044.0,88028.0,0.10236]
[1769526876035,0.011373,88043.0,88028.0,0.10236]
[1769526876434,0.11211315,88051.0,88028.0,0.10236]
[1769526876631,0.10236,88053.0,88028.0,0.10236]
[1769526876632,0.11211315,88046.0,88028.0,0.10236]
[1769526877033,0.011373,88042.0,88028.0,0.10236]
[1769526877531,0.10236,88053.0,88028.0,0.10236]
[1769526877532,0.11211315,88044.0,88028.0,0.10236]
[1769526877735,0.10236,88053.0,88020.0,0.1185]
[1769526877736,0.11211315,88039.0,88020.0,0.1185]
[1769526877928,0.12348615,88039.0,88020.0,0.1185]
[1769526878933,0.11211315,88039.0,88018.0,0.10236]
[1769526879140,0.12348615,88039.0,88018.0,0.10236]
[1769526879741,0.011374,88037.0,88018.0,0.10236]
[1769526881835,0.011374,88035.0,88018.0,0.10236]
[1769526882035,0.011374,88037.0,88018.0,0.10236]
[1769526882436,0.011374,88037.0,88018.0,0.113736]
[1769526882636,0.11211315,88039.0,88022.0,0.011376]
[1769526882829,0.11211315,88039.0,88025.0,0.011375]
[1769526883030,0.011373,88040.0,88021.0,0.011376]
[1769526883241,0.011374,88037.0,88019.0,0.09469573]
[1769526883740,0.011374,88036.0,88019.0,0.08331973]
[1769526883941,0.10236,88041.0,88019.0,0.08331973]
[1769526884245,0.011375,88029.0,88018.0,0.10236]
[1769526884432,0.10236,88041.0,88018.0,0.10236]
[1769526884433,0.011375,88027.0,88018.0,0.10236]
[1769526884633,0.11211315,88031.0,88018.0,0.10236]
[1769526884944,0.011375,88027.0,88018.0,0.10236]
[1769526885235,0.11211315,88031.0,88018.0,0.10236]
[1769526885841,0.011374,88036.0,88018.0,0.10236]
[1769526886043,0.11211315,88039.0,88018.0,0.10236]
[1769526886542,0.011374,88032.0,88018.0,0.10236]
[1769526887441,0.11211315,88032.0,88018.0,0.10236]
[1769526887746,0.011375,88029.0,88018.0,0.10236]
[1769526889835,0.011375,88025.0,88018.0,0.10236]
[1769526890034,0.11211315,88032.0,88018.0,0.10236]
[1769526891145,0.011375,88030.0,88018.0,0.10236]
[1769526892445,0.011375,88029.0,88018.0,0.10236]
[1769526893541,0.011375,88027.0,88018.0,0.10236]
[1769526895544,0.10236,88041.0,88019.0,0.08177123]
[1769526895749,0.011374,88033.0,88019.0,0.08177123]
[1769526895951,0.11598932,88040.0,88019.0,0.08177123]
[1769526896345,0.11598932,88037.0,88019.0,0.08177123]
[1769526896753,0.011374,88032.0,88019.0,0.08177123]
[1769526896943,0.11598932,88037.0,88018.0,0.10236]
[1769526897150,0.011373,88040.0,88016.0,4e-08]
[1769526897151,0.011376,88018.0,88016.0,4e-08]
[1769526897353,0.011376,88019.0,88003.0,0.10236]
[1769526897748,0.11598932,88023.0,88003.0,0.10236]
[1769526897945,0.11598932,88023.0,88003.0,0.18181918]
[1769526898142,0.11598932,88039.0,88012.0,0.07945918]
[1769526898345,0.011374,88034.0,88016.0,0.07945918]
[1769526898655,0.10236,88037.0,88016.0,0.07945918]
[1769526899241,0.011374,88034.0,88016.0,0.07945918]
[1769526900143,0.11598932,88034.0,88010.0,0.07950165]
[1769526900454,0.11598932,88034.0,88003.0,0.10236]
[1769526900455,0.011376,88023.0,88006.0,0.10236]
[1769526900653,0.011375,88026.0,88006.0,0.10236]
[1769526900949,0.011375,88024.0,88006.0,0.10236]
[1769526901157,0.011375,88025.0,88007.0,0.07950165]
[1769526901949,0.000119,88036.0,88012.0,0.07803496]
[1769526902149,0.40192,88035.0,88012.0,0.07803496]
[1769526902649,0.011375,88031.0,88012.0,0.07803496]
[1769526902851,0.11598932,88031.0,88012.0,0.07803496]
[1769526903055,0.11999967,88021.0,88000.0,0.0359669]
[1769526903250,0.011378,88007.0,88000.0,0.0359669]
[1769526903447,0.00011904,88006.0,87999.0,0.10236]
[1769526903853,0.11980218,88024.0,87999.0,0.10236]
[1769526904154,0.10236,88023.0,88002.0,0.011378]
[1769526904352,0.10236,88023.0,87999.0,0.10236]
[1769526904550,0.011376,88020.0,87999.0,0.10236]
[1769526904851,0.11980218,88022.0,87999.0,0.10236]
[1769526905054,0.13117918,88014.0,87999.0,0.10236]
[1769526905441,0.12,88013.0,87999.0,0.10236]
[1769526905641,0.131377,88013.0,87999.0,0.10236]
[1769526906255,0.10236,88012.0,87999.0,0.10236]
[1769526906452,0.011374,88035.0,87999.0,0.10236]
[1769526906656,0.12,88030.0,87999.0,0.10236]
[1769526906863,0.12,88027.0,87999.0,0.10236]
[1769526907052,0.011376,88018.0,87999.0,0.10236]
[1769526907447,0.12,88021.0,87999.0,0.10236]
[1769526907761,0.011376,88019.0,87999.0,0.10236]
[1769526907962,0.12,88021.0,87999.0,0.10236]
[1769526908353,0.10236,88022.0,87999.0,0.10236]
[1769526909055,0.011376,88020.0,87999.0,0.10236]
[1769526909358,0.10236,88022.0,87999.0,0.10236]
[1769526909561,0.12,88018.0,87993.0,0.00795522]
[1769526909759,0.011379,87996.0,87993.0,2.2e-07]
[1769526909955,0.011379,87994.0,87970.0,0.10236]
[1769526910156,0.10236,87996.0,87970.0,0.10236]
[1769526910355,0.2996,88001.0,87979.0,0.011381]
[1769526910556,0.10236,87996.0,87981.0,0.011381]
[1769526911653,0.10236,88002.0,87983.0,0.011381]
[1769526911859,0.10236,88002.0,87970.0,0.10236]
[1769526912249,0.12,88012.0,87970.0,0.113742]
[1769526912457,0.011374,88037.0,87978.0,0.11365121]
[1769526912458,0.10236,88017.0,87978.0,0.11365121]
[1769526912652,0.12,88035.0,88000.0,0.011378]
[1769526912969,0.10236,88034.0,88001.0,0.10236]
[1769526913156,0.011376,88021.0,88002.0,0.113778]
[1769526913460,0.011376,88020.0,88003.0,0.1024]
[1769526913657,0.12,88028.0,88004.0,0.011378]
[1769526913658,0.011375,88024.0,88004.0,0.011378]
[1769526913858,0.011375,88025.0,88006.0,0.011378]
[1769526914061,0.011377,88013.0,88003.0,0.1024]
[1769526914264,0.011376,88016.0,88003.0,0.1024]
[1769526914652,0.011376,88019.0,88003.0,0.1024]
[1769526915065,0.011374,88037.0,88003.0,0.1024]
[1769526915066,0.12,88036.0,88003.0,0.1024]
[1769526915250,0.06154665,88057.0,88003.0,0.1024]
[1769526915251,0.10236,88035.0,88022.0,0.011376]
[1769526915456,0.011374,88036.0,88015.0,0.10236]
[1769526915665,0.011373,88039.0,88019.0,0.011376]
[1769526915959,0.12,88035.0,88004.0,0.29964]
[1769526916157,0.011376,88023.0,88004.0,0.29964]
[1769526916357,0.011376,88021.0,88004.0,0.29964]
[1769526916558,0.12,88027.0,87994.0,0.129879]
[1769526916767,0.011377,88012.0,87995.0,0.10236]
[1769526916958,0.011377,88009.0,87995.0,0.10236]
[1769526917159,0.131377,88015.0,87995.0,0.10236]
[1769526917358,0.10236,88016.0,87995.0,0.10236]
[1769526917563,0.011377,88014.0,87995.0,0.10236]
[1769526917763,0.10236,88016.0,87995.0,0.10236]
[1769526918163,0.113736,88016.0,87995.0,0.10236]
[1769526918365,0.12,88023.0,87995.0,0.10236]
[1769526918366,0.12,88023.0,87996.0,0.011379]
[1769526918561,0.2996,88020.0,87995.0,0.10236]
[1769526919170,0.011377,88010.0,87995.0,0.10236]
[1769526919567,0.011377,88013.0,87995.0,0.10236]
[1769526919762,0.12,88019.0,87995.0,0.10236]
[1769526920266,0.011376,88022.0,88001.0,0.011378]
[1769526920571,0.402,88021.0,87995.0,0.10236]
[1769526921466,0.10236,88021.0,88003.0,0.011378]
[1769526921665,0.10236,88024.0,88005.0,0.011378]
[1769526921862,0.12,88016.0,87995.0,0.10236]
[1769526922269,0.011378,88006.0,87995.0,0.10236]
[1769526922471,0.12,88005.0,87977.0,0.13639453]
[1769526922669,0.01138,87990.0,87978.0,0.1024]
[1769526922863,0.12,87999.0,87978.0,0.1024]
[1769526923374,0.011379,87996.0,87978.0,0.1024]
[1769526923559,0.011379,87994.0,87978.0,0.1024]
[1769526923764,0.12,87999.0,87978.0,0.1024]
[1769526924173,0.131379,87999.0,87978.0,0.1024]
[1769526924475,0.12,87999.0,87978.0,0.1024]
[1769526924974,0.011379,87998.0,87978.0,0.1024]
[1769526925566,0.011379,87996.0,87978.0,0.1024]
[1769526925877,0.12,87998.0,87978.0,0.113781]
[1769526926371,0.056868,88042.0,87980.0,0.011381]
[1769526926372,0.011378,88003.0,87980.0,0.011381]
[1769526926573,0.40204,88002.0,87984.0,0.011381]
[1769526926773,0.11365186,88015.0,87998.0,0.011379]
[1769526927071,0.12,88016.0,87991.0,0.1024]
[1769526927278,0.1024,88017.0,87991.0,0.1024]
[1769526927777,0.01932561,88033.0,88007.0,0.011378]
[1769526927778,0.12,88030.0,88007.0,0.011378]
[1769526928074,0.12,88030.0,87995.0,0.011379]
[1769526928075,0.011375,88029.0,88005.0,0.1024]
[1769526928280,0.011374,88032.0,88013.0,0.011377]
[1769526928474,0.011375,88027.0,88005.0,0.1024]
[1769526928670,0.011375,88028.0,88009.0,0.011377]
[1769526928871,0.011375,88027.0,88006.0,0.011378]
[1769526929178,0.011375,88027.0,88008.0,0.011377]
[1769526929873,0.011375,88030.0,88005.0,0.1024]
[1769526930072,0.11035161,88033.0,88005.0,0.1024]
[1769526930266,0.011375,88030.0,88008.0,0.011377]
[1769526930470,0.011375,88028.0,88008.0,0.011377]
[1769526931082,0.11035161,88033.0,88005.0,0.113778]
[1769526931278,0.011375,88027.0,88007.0,0.011378]
[1769526932179,0.011375,88027.0,88009.0,0.011377]
[1769526932386,0.011375,88027.0,88005.0,0.113778]
[1769526932682,0.011376,88020.0,88005.0,0.1024]
[1769526932983,0.011376,88023.0,88005.0,0.1024]
[1769526933188,0.12,88030.0,88006.0,0.011378]
[1769526933680,0.011375,88029.0,88008.0,0.011377]
[1769526933886,0.011375,88027.0,88007.0,0.011378]
[1769526934078,0.12,88028.0,88005.0,0.113778]
[1769526934384,0.011376,88023.0,88005.0,0.1024]
[1769526934977,0.12,88028.0,88005.0,0.1024]
[1769526935186,0.011376,88016.0,88006.0,0.1024]
[1769526935373,0.12,88019.0,87994.0,0.2209]
[1769526935572,0.011377,88013.0,87994.0,0.1024]
[1769526936475,0.011377,88013.0,87994.0,0.113779]
[1769526936886,0.011377,88013.0,87994.0,0.1024]
[1769526937181,0.011378,88007.0,87994.0,0.1024]
[1769526937385,0.12,88014.0,87994.0,0.1024]
[1769526937586,0.011377,88010.0,87994.0,0.1024]
[1769526937981,0.011377,88013.0,87994.0,0.1024]
[1769526938380,0.131377,88014.0,87994.0,0.1024]
[1769526938588,0.011377,88014.0,87994.0,0.113779]
[1769526939287,0.011377,88010.0,87994.0,0.1024]
[1769526939489,0.113776,88020.0,87994.0,0.1024]
[1769526939490,0.011377,88002.0,87994.0,0.1024]
[1769526939684,0.011377,88001.0,87994.0,0.1024]
[1769526939890,0.12,88014.0,87994.0,0.1024]
[1769526940087,0.011374,88029.0,88000.0,0.14713936]
[1769526940278,0.011375,88018.0,88000.0,0.14713936]
[1769526940484,0.10236,88030.0,88000.0,0.14713936]
[1769526940679,0.011373,88034.0,88011.0,0.011376]
[1769526940876,0.011373,88032.0,88012.0,0.10236]
[1769526941187,0.011371,88050.0,88012.0,0.10236]
[1769526941188,0.011,88047.0,88020.0,0.14713936]
[1769526941386,0.011,88047.0,88030.0,0.14713936]
[1769526941688,0.12,88071.0,88040.0,0.14713936]
[1769526941882,0.10236,88069.0,88041.0,0.402]
[1769526942083,0.01137,88056.0,88041.0,0.402]
[1769526942581,0.011371,88047.0,88042.0,0.10236]
[1769526942782,0.12,88057.0,88040.0,0.2996]
[1769526942783,0.011371,88048.0,88040.0,0.2996]
[1769526942985,0.01137,88055.0,88037.0,0.10236]
[1769526943186,0.01137,88053.0,88030.0,0.2996]
[1769526943388,0.10236,88056.0,88031.0,0.10236]
[1769526943389,0.12,88055.0,88031.0,0.10236]
[1769526943576,0.10236,88056.0,88031.0,0.10236]
[1769526943781,0.01137,88061.0,88031.0,0.10236]
[1769526943983,0.022369,88067.0,88031.0,0.10236]
[1769526944287,0.011369,88062.0,88037.0,0.011372]
[1769526945389,0.01137,88060.0,88034.0,0.011373]
[1769526945595,0.011369,88063.0,88036.0,0.011373]
[1769526945785,0.10236,88066.0,88031.0,0.10236]
[1769526945786,0.113729,88066.0,88039.0,0.011372]
[1769526946095,0.01137,88061.0,88031.0,0.10236]
[1769526946393,0.011371,88048.0,88032.0,0.10236]
[1769526947087,0.011372,88043.0,88032.0,0.10236]
[1769526947288,0.011371,88046.0,88032.0,0.10236]
[1769526948090,0.011371,88049.0,88032.0,0.10236]
[1769526948293,0.011371,88046.0,88032.0,0.10236]
[1769526948890,0.011371,88049.0,88032.0,0.10236]
[1769526949091,0.10236,88055.0,88032.0,0.10236]
[1769526949394,0.022369,88067.0,88032.0,0.10236]
[1769526949601,0.011369,88063.0,88037.0,0.011372]
[1769526949796,0.01137,88058.0,88032.0,0.113733]